bitfinex/quotes_ETHUSD_20220123
["timestamp","ask_amount","ask_price","bid_price","bid_amount"]
[1642896478373,0.90615299,2421.1,2420.8,1.49957123]
[1642896478578,0.90615299,2421.1,2420.9,1.54407672]
[1642896478776,0.04,2421.9,2421.0,0.1652]
[1642896478976,0.04,2421.9,2421.1,0.20598]
[1642896479181,0.0119369,2421.6,2421.2,0.1651]
[1642896479379,3.69e-05,2421.6,2421.4,0.10007561]
[1642896479575,0.04,2421.9,2421.3,0.31321079]
[1642896479576,6.847e-05,2421.5,2421.3,0.31321079]
[1642896479775,0.04,2421.9,2421.3,0.31321079]
[1642896479776,0.04,2421.9,2421.5,2.7]
[1642896479990,0.04,2421.9,2421.7,0.12661681]
[1642896480178,0.04,2422.1,2421.7,0.12661681]
[1642896480179,0.00258702,2422.9,2421.9,0.1193234]
[1642896480384,8.702e-05,2422.9,2422.5,0.01229806]
[1642896480681,0.0124025,2424.4,2422.0,3.88594069]
[1642896480682,0.1651,2425.5,2422.9,2.7]
[1642896480881,0.1651,2425.5,2423.4,0.0120607]
[1642896481083,7.374e-05,2423.8,2423.5,0.62520129]
[1642896481282,2.27836846,2425.3,2424.4,1.52851809]
[1642896481481,3.4773,2426.2,2424.8,1.50333694]
[1642896481482,0.01217523,2425.8,2424.8,1.50333694]
[1642896481680,11.6436,2427.2,2424.2,2.7]
[1642896481877,11.6436,2427.2,2424.4,0.1032572]
[1642896481878,4.81,2426.6,2424.4,0.1032572]
[1642896482143,0.0022737,2425.7,2424.5,0.20649]
[1642896482331,0.0022737,2425.7,2424.6,0.01282597]
[1642896482537,0.00170528,2425.6,2424.5,0.00454738]
[1642896482729,0.00170528,2425.6,2424.7,0.00341054]
[1642896482933,0.01259913,2426.6,2423.5,0.3029]
[1642896482934,0.49313685,2425.5,2423.7,0.00909477]
[1642896483130,0.492,2425.4,2423.9,0.00795792]
[1642896483329,0.492,2425.4,2423.6,0.00966319]
[1642896483835,5.00242202,2425.3,2423.6,0.00966319]
[1642896484030,5.00242202,2425.3,2423.7,0.01298522]
[1642896484031,0.492,2425.2,2423.7,0.01298522]
[1642896484432,0.492,2425.2,2423.6,0.00966319]
[1642896484433,0.492,2425.2,2423.8,0.00852635]
[1642896484637,1.792,2425.2,2423.8,0.00852635]
[1642896484831,1.0,2425.0,2424.1,0.0044134]
[1642896485031,1.1177733,2424.4,2424.1,0.0044134]
[1642896485232,1.85,2424.3,2423.1,0.01228713]
[1642896485535,0.00341054,2424.2,2423.2,0.0022737]
[1642896485972,0.00284211,2424.1,2423.8,0.00972198]
[1642896486176,1.15216802,2424.1,2423.8,2.198e-05]
[1642896486378,0.49427369,2424.0,2423.8,2.198e-05]
[1642896486572,0.79427369,2424.0,2423.8,2.198e-05]
[1642896486772,2.70170527,2423.9,2423.8,2.198e-05]
[1642896486974,3.19370527,2423.9,2423.8,2.198e-05]
[1642896487376,0.49370527,2423.9,2423.8,2.198e-05]
[1642896487578,0.00170527,2423.9,2423.8,2.198e-05]
[1642896487775,2.70170527,2423.9,2423.8,2.198e-05]
[1642896488178,2.70170527,2423.9,2422.9,0.00397897]
[1642896488179,2.7,2423.8,2422.9,0.00397897]
[1642896488378,1.48521364,2423.1,2422.9,7.897e-05]
[1642896488581,1.48521364,2423.1,2422.4,0.00292109]
[1642896488582,0.54682,2423.0,2422.4,0.00292109]
[1642896488780,0.54682,2423.0,2421.5,0.0080369]
[1642896488781,1.68996531,2423.0,2421.5,0.0080369]
[1642896488981,1.22561903,2421.7,2421.5,0.0012369]
[1642896489178,0.00672103,2422.9,2421.8,3.47404466]
[1642896489179,0.05485,2422.8,2421.8,3.47404466]
[1642896489380,5.96172103,2422.9,2421.8,3.47404466]
[1642896489381,0.00672103,2422.9,2422.2,0.20284427]
[1642896489633,0.00672103,2422.9,2421.8,3.47404466]
[1642896489634,1.31590344,2422.7,2421.8,3.47404466]
[1642896489828,1.31031926,2422.7,2421.8,3.47404466]
[1642896490028,0.00501576,2422.6,2421.8,3.47404466]
[1642896490227,1.41960334,2422.5,2421.8,3.47404466]
[1642896490437,1.72405068,2422.5,2421.8,3.47404466]
[1642896490636,2.7,2422.3,2421.1,0.00351059]
[1642896490834,0.54691,2422.2,2421.1,0.00351059]
[1642896491031,0.54691,2422.2,2421.6,0.01246753]
[1642896491032,0.01353167,2421.7,2421.6,0.01246753]
[1642896491330,0.9437146,2421.7,2421.6,0.01246753]
[1642896493131,0.9437146,2421.7,2421.6,6.753e-05]
[1642896493381,3.192,2421.7,2421.6,6.753e-05]
[1642896493582,0.54682,2421.7,2421.6,6.753e-05]
[1642896493783,0.492,2421.7,2421.6,6.753e-05]
[1642896493982,0.00217364,2422.1,2421.0,0.1651]
[1642896494185,0.00217364,2422.1,2420.9,2.52143099]
[1642896494381,1.37060349,2421.0,2420.9,2.35633099]
[1642896494580,0.54804522,2422.0,2420.9,2.34432131]
[1642896494581,0.49360522,2422.0,2420.9,2.34432131]
[1642896494780,0.492,2422.0,2421.6,0.0041066]
[1642896494985,1.50785722,2421.8,2421.6,0.0041066]
[1642896495381,1.50785722,2421.8,2421.6,6.6e-06]
[1642896495580,1.9331135,2421.7,2421.6,6.6e-06]
[1642896495781,1.9331135,2421.7,2420.9,0.00464744]
[1642896495980,1.9331135,2421.7,2421.2,0.01082296]
[1642896495981,1.94694832,2421.7,2421.2,0.01082296]
[1642896496382,1.89271832,2421.7,2421.3,0.00237374]
[1642896496581,25.34,2421.6,2421.3,7.374e-05]
[1642896496789,3.24768,2421.5,2420.7,2.10943487]
[1642896496981,3.84881684,2421.5,2420.7,2.10943487]
[1642896497233,3.84881684,2421.5,2420.8,0.00284212]
[1642896497428,3.54881684,2421.5,2420.8,0.00284212]
[1642896497632,3.4907377,2421.4,2420.8,0.00284212]
[1642896497828,5.18359168,2421.4,2420.8,0.00284212]
[1642896498028,29.52359168,2421.4,2420.8,0.00284212]
[1642896498231,6.21759168,2421.4,2420.8,0.00284212]
[1642896498429,6.21759168,2421.4,2420.7,2.06227699]
[1642896498730,6.21759168,2421.4,2420.1,0.1651]
[1642896498731,2.7,2421.2,2420.1,0.1651]
[1642896498931,2.7,2421.2,2419.5,2.29455376]
[1642896498932,0.12338269,2419.6,2419.5,2.29455376]
[1642896499133,2.56029,2421.1,2420.2,0.00341054]
[1642896499134,0.492,2420.4,2420.2,0.00341054]
[1642896499529,0.792,2420.4,2420.2,0.00341054]
[1642896499731,0.792,2420.4,2419.6,0.00682108]
[1642896499929,0.492,2420.4,2419.6,0.00682108]
[1642896500130,1.30681042,2419.7,2419.5,0.00738951]
[1642896500879,1.79881042,2419.7,2419.5,0.00738951]
[1642896501081,1.79881042,2419.7,2419.5,0.01941462]
[1642896501488,0.492,2419.7,2419.6,0.00682108]
[1642896501882,0.013966,2420.0,2419.6,0.00682108]
[1642896502482,0.013966,2420.0,2419.7,1.35505303]
[1642896502677,0.013966,2420.0,2419.6,0.00682108]
[1642896502880,0.01054368,2420.0,2419.8,0.00568424]
[1642896503077,0.01054368,2420.0,2419.5,0.01202511]
[1642896503078,0.01054368,2420.0,2419.6,0.00682108]
[1642896503279,2.61054368,2420.0,2419.4,2.93848184]
[1642896503478,0.00170527,2419.9,2419.4,2.93848184]
[1642896503880,0.00113684,2419.8,2419.4,2.93848184]
[1642896504081,0.00113684,2419.8,2419.5,1.12764885]
[1642896504277,0.00170527,2419.9,2419.5,1.12764885]
[1642896504726,0.00113684,2419.8,2419.7,1.25849119]
[1642896504924,0.00113684,2419.8,2419.6,0.00380377]
[1642896505126,0.00170527,2419.8,2419.6,0.00380377]
[1642896505329,4.895e-05,2420.0,2419.7,2.7]
[1642896505535,4.895e-05,2420.0,2419.8,0.19]
[1642896505830,4.895e-05,2420.0,2419.9,0.0129619]
[1642896506134,0.00259033,2421.3,2420.1,0.0008]
[1642896506135,0.01333238,2421.1,2420.1,0.0008]
[1642896506325,0.01333238,2421.1,2420.7,1.21667662]
[1642896506528,0.00568423,2420.9,2420.5,1.47300997]
[1642896506726,0.00568423,2420.9,2420.2,0.1652]
[1642896506928,0.00511581,2420.8,2420.2,0.16415]
[1642896507325,0.00454739,2420.7,2420.2,0.16415]
[1642896507526,0.00454739,2420.7,2420.3,1.10397702]
[1642896507725,0.00397896,2420.6,2420.4,0.19]
[1642896507928,0.00397896,2420.6,2420.5,1.49274147]
[1642896508230,0.01333238,2421.1,2420.8,0.01193688]
[1642896508484,0.01333238,2421.1,2421.0,0.19]
[1642896508678,0.01333238,2421.1,2421.0,0.56169]
[1642896508883,0.02015346,2421.1,2421.0,0.3552]
[1642896509075,0.02015346,2421.1,2421.0,0.56169]
[1642896509277,0.05693,2422.1,2421.1,2.70674654]
[1642896509477,0.05693,2422.1,2422.0,0.19]
[1642896509680,0.05693,2422.1,2421.3,0.06067903]
[1642896509879,0.05693,2422.1,2421.4,0.1651]
[1642896510077,0.00511581,2422.0,2421.4,0.1651]
[1642896510277,0.00511581,2422.0,2421.9,2.84]
[1642896510479,0.05693,2422.1,2422.0,2.6513008]
[1642896510877,0.00568423,2422.1,2422.0,2.6513008]
[1642896511077,8.423e-05,2422.1,2422.0,5.3713993]
[1642896511277,8.423e-05,2422.1,2422.0,5.87557589]
[1642896511480,0.04,2422.3,2422.1,2.7]
[1642896511679,0.04,2422.3,2422.2,3.16133138]
[1642896511882,0.04,2422.3,2422.2,0.3551]
[1642896512129,0.04113685,2422.3,2422.2,0.3551]
[1642896512338,0.04113685,2422.3,2422.2,0.1651]
[1642896512632,0.04113685,2422.3,2421.2,0.01218993]
[1642896512633,0.05165,2422.2,2421.2,0.01218993]
[1642896512831,1.94113685,2422.3,2421.1,1.35632606]
[1642896513029,1.94113685,2422.3,2421.3,0.00454738]
[1642896513030,0.04952,2422.2,2421.3,0.00454738]
[1642896513329,0.04952,2422.2,2421.1,0.00568423]
[1642896513330,1.1538968,2422.1,2421.1,0.00568423]
[1642896513734,1.1538968,2422.1,2421.2,2.34388473]
[1642896513937,0.54787,2422.0,2421.2,2.34388473]
[1642896514128,0.54787,2422.0,2421.6,0.19]
[1642896514528,0.54787,2422.0,2421.7,0.00227369]
[1642896514738,0.05587,2422.0,2421.7,0.00227369]
[1642896514938,0.05587,2422.0,2421.5,0.00370133]
[1642896515328,0.05587,2422.0,2421.6,0.00284211]
[1642896515980,0.03067,2422.0,2421.6,0.00284211]
[1642896516177,0.03067,2422.0,2421.6,0.19284211]
[1642896516386,0.00407,2422.0,2421.9,2.74]
[1642896516777,0.00407,2422.0,2421.9,0.19113684]
[1642896516979,0.00407,2422.0,2421.9,0.00113684]
[1642896517379,1.3669935,2422.0,2421.7,0.00227369]
[1642896517588,0.00407,2422.0,2421.7,0.00227369]
[1642896517780,0.04113685,2422.3,2422.1,0.00813999]
[1642896518980,3.192,2422.2,2422.1,0.00813999]
[1642896519831,3.192,2422.2,2421.5,0.0028821]
[1642896519832,28.83377415,2422.2,2421.5,0.0028821]
[1642896520032,28.83377415,2422.2,2421.4,0.0111071]
[1642896520033,30.43377415,2422.2,2421.4,0.0111071]
[1642896520235,25.07875808,2422.1,2421.4,0.0111071]
[1642896520436,0.492,2422.0,2421.4,0.0111071]
[1642896520636,0.79427369,2422.0,2421.4,0.0111071]
[1642896520837,0.00170527,2421.9,2420.8,0.02293813]
[1642896521032,1.84703927,2421.8,2420.8,0.02293813]
[1642896521233,26.18817611,2421.8,2420.9,0.00397897]
[1642896521635,25.5948814,2421.7,2420.9,0.00397897]
[1642896522035,1.2548814,2421.7,2420.9,0.00397897]
[1642896522840,1.2548814,2421.7,2421.6,0.19]
[1642896523040,1.2548814,2421.7,2421.1,0.19]
[1642896523519,1.7468814,2421.7,2421.2,0.0022737]
[1642896523699,1.7468814,2421.7,2420.4,0.1381]
[1642896523700,2.7,2421.6,2419.8,0.01256064]
[1642896523901,2.7,2421.6,2421.0,0.00113684]
[1642896523902,0.492,2421.5,2421.0,0.00113684]
[1642896524102,1.0,2421.4,2421.0,0.00113684]
[1642896524300,2.85780938,2421.3,2421.0,0.00113684]
[1642896524704,1.33697994,2421.3,2421.0,0.00113684]
[1642896524903,0.84497994,2421.3,2420.6,0.00341054]
[1642896525100,0.84497994,2421.3,2420.6,0.16861054]
[1642896525300,0.84497994,2421.3,2421.2,0.19]
[1642896525505,0.84497994,2421.3,2420.7,0.00284211]
[1642896525703,0.84497994,2421.3,2420.7,1.19349275]
[1642896525905,0.84497994,2421.3,2421.2,0.0120768]
[1642896526307,0.00113685,2421.4,2421.2,1.8520768]
[1642896526509,0.00113685,2421.4,2421.3,5.28744851]
[1642896526707,0.165,2422.7,2421.4,2.7022737]
[1642896526907,0.165,2422.7,2421.5,2.75295187]
[1642896527130,0.00454739,2422.2,2421.4,0.4613737]
[1642896527331,1.37312011,2421.9,2421.4,0.1922737]
[1642896527532,1.37312011,2421.9,2421.4,0.0022737]
[1642896527731,0.65937369,2421.8,2421.4,0.0022737]
[1642896528136,0.00170527,2421.7,2421.4,0.0022737]
[1642896528333,0.89487243,2421.6,2421.4,0.0022737]
[1642896528532,0.89600928,2421.6,2421.4,0.0022737]
[1642896528933,0.00113685,2421.6,2421.5,0.19]
[1642896529433,0.00113685,2421.6,2421.5,2.89]
[1642896529836,0.00113685,2421.6,2421.4,0.18008646]
[1642896530036,1.41845543,2421.5,2421.4,0.0022737]
[1642896531380,1.41845543,2421.5,2421.4,0.1922737]
[1642896531580,1.41845543,2421.5,2421.2,0.2686]
[1642896531792,1.31845543,2421.5,2421.2,0.2686]
[1642896531981,1.81045543,2421.5,2421.2,0.2686]
[1642896532383,1.81045543,2421.5,2421.2,0.0001]
[1642896532980,0.1651,2421.4,2421.2,0.0001]
[1642896533180,0.165,2421.5,2421.3,0.1422737]
[1642896533379,0.00113685,2421.6,2421.3,0.1422737]
[1642896534482,0.00113685,2421.6,2421.4,0.0125629]
[1642896534930,0.00113685,2421.6,2421.4,0.00370672]
[1642896536033,1.29222269,2421.5,2421.4,0.00370672]
[1642896536234,2.82094219,2421.5,2421.4,0.00370672]
[1642896537631,1.29222269,2421.5,2421.4,0.00370672]
[1642896537833,1.29222269,2421.5,2421.4,0.14598042]
[1642896538030,0.00113685,2421.6,2421.4,0.00370672]
[1642896538235,0.00113685,2421.6,2421.5,2.0922737]
[1642896538678,0.00113685,2421.6,2421.5,3.52757386]
[1642896538983,1.31646735,2422.1,2421.8,1.2857088]
[1642896539179,0.492,2422.7,2422.0,0.1422737]
[1642896539476,0.00341054,2422.2,2421.7,0.0022737]
[1642896539875,0.00284211,2422.1,2421.7,0.0022737]
[1642896540276,1.15649082,2422.0,2421.7,0.0022737]
[1642896540678,0.00170527,2421.9,2421.7,0.0022737]
[1642896541077,1.15421713,2422.0,2421.7,0.0022737]
[1642896541078,0.00113684,2421.8,2421.7,0.0022737]
[1642896543428,1.24450279,2421.8,2421.7,0.0022737]
[1642896543829,0.00113684,2421.8,2421.7,0.0022737]
[1642896544732,0.00113684,2421.8,2421.7,0.00596425]
[1642896545330,1.315853,2421.8,2421.7,0.00596425]
[1642896545976,3.615853,2421.8,2421.7,0.01629889]
[1642896546178,4.107853,2421.8,2421.7,0.01629889]
[1642896546376,4.107853,2421.8,2420.5,0.17767843]
[1642896546377,0.01390111,2421.7,2420.5,0.17767843]
[1642896546585,0.01390111,2421.7,2420.2,3.90099997]
[1642896546586,0.6571,2421.6,2420.2,3.90099997]
[1642896546779,0.84564421,2421.5,2420.6,0.00568424]
[1642896546979,0.84564421,2421.5,2420.3,0.00738951]
[1642896546980,0.6571,2421.4,2420.3,0.00738951]
[1642896547177,24.34,2421.3,2420.3,0.00738951]
[1642896547377,1.47260818,2420.5,2420.2,0.00795793]
[1642896547577,0.492,2420.6,2420.2,0.00795793]
[1642896547778,0.492,2421.0,2420.5,2.8422737]
[1642896547976,0.492,2421.0,2420.4,0.01292721]
[1642896548176,0.492,2421.0,2420.6,0.00568424]
[1642896548377,0.492,2421.0,2420.6,0.0922737]
[1642896548777,0.492,2421.4,2420.7,0.00511581]
[1642896548987,0.1651,2421.3,2420.7,0.00511581]
[1642896549379,1.70989545,2421.2,2420.2,0.00795793]
[1642896549656,24.5051,2421.1,2420.2,0.00795793]
[1642896549842,4.46720073,2421.0,2420.2,0.00795793]
[1642896550042,0.4651,2420.9,2420.2,0.00795793]
[1642896550244,24.832,2420.8,2420.2,0.00795793]
[1642896550447,1.09022801,2420.6,2420.2,0.00795793]
[1642896550649,24.9971,2420.5,2420.2,0.00795793]
[1642896551043,25.34,2420.4,2420.2,5.793e-05]
[1642896551247,25.34,2420.4,2419.4,2.93848184]
[1642896551248,3.3571,2420.3,2419.4,2.93848184]
[1642896551444,24.34,2420.2,2419.4,2.93848184]
[1642896551646,24.34,2420.2,2419.5,0.00397897]
[1642896551647,24.9971,2420.1,2419.5,0.00397897]
[1642896551849,1.12891183,2420.0,2419.5,0.00397897]
[1642896552050,0.6571,2419.9,2419.5,0.00397897]
[1642896552244,1.39909526,2419.8,2419.5,0.00397897]
[1642896552445,3.57094951,2419.6,2418.7,0.01242203]
[1642896552645,0.6571,2419.5,2418.7,0.01242203]
[1642896552846,0.6571,2419.5,2419.1,0.00227369]
[1642896553045,2.7,2419.3,2417.9,1.72444191]
[1642896553252,2.7,2419.3,2416.9,1.03451]
[1642896553253,2.7,2419.3,2416.7,6.21519646]
[1642896553254,0.01257989,2418.4,2416.7,6.21519646]
[1642896553495,0.78,2416.3,2416.0,14.71836516]
[1642896553698,0.78,2416.3,2415.4,8.57434294]
[1642896553699,1.52115131,2416.2,2416.1,6.48012115]
[1642896553901,1.272,2416.3,2415.2,0.13819997]
[1642896554092,1.272,2416.3,2415.3,3.48377276]
[1642896554296,1.272,2416.3,2415.3,3.48832015]
[1642896554499,1.272,2416.3,2415.9,1.17372253]
[1642896554795,1.172,2416.3,2416.0,1.53139117]
[1642896555008,0.492,2417.2,2416.4,3.516]
[1642896555199,0.492,2417.2,2416.8,0.0123706]
[1642896555395,0.00568423,2417.1,2416.8,0.0123706]
[1642896555596,8.423e-05,2417.1,2416.8,0.0123706]
[1642896555795,0.492,2417.8,2417.0,2.95847558]
[1642896555796,3.5,2417.8,2417.0,2.95847558]
[1642896555994,3.5,2417.8,2417.0,2.71275793]
[1642896556201,0.00349477,2417.7,2417.1,0.1381]
[1642896556398,0.00349477,2417.7,2417.2,0.1653]
[1642896556598,0.00292635,2417.6,2417.2,0.1653]
[1642896556796,2.635e-05,2417.6,2417.3,1.44209165]
[1642896557001,3.5,2418.4,2417.5,2.91945119]
[1642896557260,0.492,2418.6,2417.7,0.05838573]
[1642896557455,0.00400531,2418.3,2417.6,0.1653]
[1642896557655,0.492,2418.6,2417.6,0.37179]
[1642896557656,0.00514216,2418.5,2417.6,0.37179]
[1642896557858,0.00343689,2418.2,2417.7,1.38303634]
[1642896558061,0.492,2418.1,2417.6,0.1653]
[1642896558258,0.492,2418.0,2417.6,0.1153]
[1642896558460,0.49430004,2418.0,2417.6,0.1153]
[1642896558758,0.01249379,2418.8,2418.2,0.9891685]
[1642896558956,0.492,2418.7,2418.2,0.9891685]
[1642896559157,0.00397896,2418.6,2418.2,0.9891685]
[1642896559457,0.00397896,2418.6,2417.2,0.07039494]
[1642896559458,1.64277453,2417.6,2417.2,0.07039494]
[1642896559862,1.64277453,2417.6,2417.3,0.00227369]
[1642896560459,2.13477453,2417.6,2417.3,0.00227369]
[1642896560658,2.13477453,2417.6,2417.2,0.00284212]
[1642896560659,2.34682076,2417.5,2417.2,0.00284212]
[1642896560884,0.492,2417.4,2416.6,0.00625266]
[1642896561283,0.492,2417.4,2416.8,1.31923252]
[1642896561783,0.492,2417.4,2416.9,0.00454739]
[1642896561983,2.34682076,2417.3,2416.9,0.00454739]
[1642896562190,2.83882076,2417.3,2416.9,0.00454739]
[1642896563188,0.492,2417.3,2416.9,0.00454739]
[1642896563584,0.492,2417.3,2416.7,0.00568423]
[1642896563786,0.492,2417.3,2416.5,0.00682108]
[1642896563987,0.1655,2417.2,2416.5,0.00682108]
[1642896564185,0.492,2417.1,2416.5,0.00682108]
[1642896564385,0.1655,2417.0,2416.5,0.00682108]
[1642896564634,0.492,2416.9,2416.4,3.47282108]
[1642896564838,0.00227369,2416.9,2416.5,2.95470049]
[1642896565033,2.34800493,2417.1,2416.9,0.00452433]
[1642896565438,0.00113685,2417.0,2416.9,0.00452433]
[1642896565841,0.00113685,2417.0,2416.9,3.95380783]
[1642896566234,1.64277453,2417.6,2417.0,2.7]
[1642896566435,1.64277453,2417.6,2417.2,0.08182211]
[1642896566634,0.00284211,2417.5,2417.4,2.7]
[1642896566834,0.00284211,2417.5,2417.4,2.8653]
[1642896567234,0.00284211,2417.5,2417.4,4.21125264]
[1642896568236,0.00284211,2417.5,2417.4,4.16125264]
[1642896568500,0.01289672,2419.1,2417.6,2.7]
[1642896568707,0.6574,2419.6,2418.4,0.0128759]
[1642896568896,0.492,2419.6,2418.5,0.64626882]
[1642896569094,0.492,2419.6,2418.5,0.94626882]
[1642896569297,0.1653,2419.5,2418.5,0.27447882]
[1642896569497,0.1653,2419.5,2417.9,0.1653]
[1642896569498,0.01226792,2419.1,2417.9,0.1653]
[1642896569693,0.01226792,2419.1,2417.5,0.1653]
[1642896569694,0.58904684,2418.6,2417.5,0.1653]
[1642896569894,0.58904684,2418.6,2417.4,0.22217723]
[1642896570100,0.00568424,2418.5,2417.5,0.1653]
[1642896570294,0.00568424,2418.5,2417.6,0.20649]
[1642896570498,0.492,2418.8,2418.5,0.0119369]
[1642896570998,0.492,2418.8,2418.7,0.0130423]
[1642896571401,1.08332053,2418.8,2418.7,0.0130423]
[1642896571701,2.05,2418.7,2418.1,1.37461851]
[1642896571998,0.00113684,2418.6,2418.2,0.00113685]
[1642896572436,0.6573,2418.5,2418.2,0.00113685]
[1642896572636,0.66939159,2418.5,2417.8,0.00341054]
[1642896572831,0.66939159,2418.5,2417.5,0.00511582]
[1642896573231,0.58904684,2418.2,2417.5,0.00511582]
[1642896573432,0.58904684,2418.2,2417.5,1.09026986]
[1642896573433,0.492,2418.1,2417.5,1.09026986]
[1642896573835,0.492,2418.1,2417.6,0.00454739]
[1642896574333,0.492,2418.1,2417.5,0.00511582]
[1642896574534,3.61772772,2418.1,2417.5,0.00511582]
[1642896574737,3.24639065,2418.0,2417.5,0.00511582]
[1642896574936,3.24639065,2418.0,2417.7,0.00329414]
[1642896574937,0.492,2417.9,2417.7,0.00329414]
[1642896575147,2.8653,2417.8,2417.7,0.00329414]
[1642896575336,3.192,2417.8,2417.7,0.00329414]
[1642896575536,0.492,2417.8,2417.7,0.00329414]
[1642896576584,0.492,2417.8,2417.0,0.1653]
[1642896576982,0.492,2417.8,2417.1,0.00738951]
[1642896577887,0.492,2417.8,2417.7,1.39294829]
[1642896578283,0.492,2417.8,2417.7,1.39692726]
[1642896578483,0.01316733,2418.1,2417.7,1.39692726]
[1642896578683,6.733e-05,2418.1,2417.8,0.07274366]
[1642896578988,0.1653,2419.2,2418.8,2.0498831]
[1642896579184,0.492,2419.3,2418.8,2.0498831]
[1642896579836,0.1653,2419.5,2418.8,2.0498831]
[1642896580039,0.50427253,2420.0,2418.8,2.0498831]
[1642896580040,0.27310503,2419.9,2418.9,0.0503465]
[1642896580239,0.00397897,2419.3,2419.0,0.1653]
[1642896580437,0.00397897,2419.3,2419.2,2.90649]
[1642896580638,0.04,2419.9,2419.2,4.43319905]
[1642896580840,0.04,2419.9,2419.4,0.05997307]
[1642896581234,0.04,2419.9,2419.5,0.20649]
[1642896581235,0.00682108,2419.8,2419.5,0.20649]
[1642896581438,0.00682108,2419.8,2419.6,0.22387322]
[1642896581639,0.04,2419.9,2419.6,0.22387322]
[1642896581834,7.6853,2421.1,2419.7,25.47038346]
[1642896581835,7.52,2421.1,2419.7,25.47038346]
[1642896582147,0.00170527,2420.0,2419.8,1.42766428]
[1642896582335,0.00170527,2420.0,2419.8,1.37169]
[1642896582336,5.27e-06,2420.0,2419.8,1.37169]
[1642896582536,0.00113685,2419.9,2419.8,0.37169]
[1642896582739,3.685e-05,2419.9,2419.8,3.07169]
[1642896582935,0.00568951,2421.0,2419.8,4.07392158]
[1642896583134,0.00568951,2421.0,2420.0,0.05335693]
[1642896583394,0.00402108,2420.9,2420.2,1.41575899]
[1642896583785,2.62364522,2421.8,2420.4,2.7]
[1642896583986,0.04,2421.8,2420.6,0.05658915]
[1642896584184,1.49958207,2422.2,2420.8,2.7]
[1642896584385,0.00397896,2421.7,2420.9,0.20649]
[1642896584685,0.54470678,2422.3,2420.7,1.40533283]
[1642896584686,0.00341054,2421.6,2420.7,1.40533283]
[1642896584886,0.00341054,2421.6,2420.7,0.00170527]
[1642896584887,0.492,2421.5,2420.7,0.00170527]
[1642896585085,0.1652,2421.4,2420.8,0.00113685]
[1642896585289,0.1652,2421.4,2420.6,0.0022737]
[1642896585290,0.65947369,2421.4,2420.6,0.0022737]
[1642896585486,0.00170527,2421.3,2420.6,0.0022737]
[1642896585885,0.16633684,2421.2,2420.8,0.01307813]
[1642896586088,0.492,2421.1,2420.8,0.01307813]
[1642896586285,0.1773768,2421.0,2420.8,0.01307813]
[1642896586486,2.942,2420.9,2420.8,0.01307813]
[1642896586684,0.6572,2420.9,2420.8,0.01307813]
[1642896586887,0.6572,2420.9,2420.8,0.01421498]
[1642896587845,0.1652,2420.9,2420.8,0.22070498]
[1642896588040,0.00170527,2421.3,2420.9,1.8064]
[1642896588437,0.00113684,2421.2,2420.9,1.8064]
[1642896588640,0.00113684,2421.2,2421.0,1.10923828]
[1642896588838,0.00454738,2421.8,2421.4,1.45878]
[1642896589040,0.00454738,2421.8,2420.9,1.8064]
[1642896589442,0.58904684,2421.7,2420.9,1.8064]
[1642896589667,2.27998684,2421.7,2420.9,1.8064]
[1642896589841,2.27998684,2421.7,2421.1,0.00278123]
[1642896589842,0.01244228,2421.4,2421.1,0.00278123]
[1642896590038,0.6572,2421.3,2421.1,0.00278123]
[1642896590242,0.65890527,2421.3,2421.1,0.00278123]
[1642896590447,0.00113684,2421.2,2421.1,0.00278123]
[1642896590908,0.00113684,2421.2,2421.1,0.0158064]
[1642896592494,0.00113684,2421.2,2421.1,2.1658064]
[1642896592895,0.00113684,2421.2,2421.1,3.6162427]
[1642896593098,0.00113684,2421.2,2421.1,2.1658064]
[1642896593296,0.00113684,2421.2,2421.1,0.0158064]
[1642896594197,0.16633684,2421.2,2421.1,0.0158064]
[1642896594837,3.94738368,2421.2,2421.1,6.4e-06]
[1642896595035,2.7,2421.1,2419.9,0.20849494]
[1642896595346,2.7,2421.1,2420.0,0.00454739]
[1642896595347,0.01235296,2420.7,2420.0,0.00454739]
[1642896595543,0.6572,2420.6,2420.0,0.00454739]
[1642896595743,0.9572,2420.6,2419.1,0.0096632]
[1642896595935,0.9572,2420.6,2419.1,1.1112991]
[1642896596135,0.9572,2420.6,2419.1,0.0096632]
[1642896596335,0.9572,2420.6,2419.2,0.00909478]
[1642896596336,1.9572,2420.6,2419.2,0.00909478]
[1642896596534,1.9572,2420.6,2419.1,0.0096632]
[1642896597535,0.6572,2420.6,2419.6,0.0123815]
[1642896597737,0.492,2420.6,2419.6,1.54137789]
[1642896597936,0.1652,2420.9,2419.7,0.00625266]
[1642896598138,0.00113685,2421.0,2419.7,1.21274266]
[1642896598408,0.00113685,2421.0,2420.2,0.06015589]
[1642896598595,0.00113685,2421.0,2420.1,0.01238148]
[1642896598895,0.492,2421.4,2420.1,0.01238148]
[1642896598896,0.492,2421.4,2421.2,1.20656863]
[1642896599195,2.00170527,2421.3,2421.2,1.20656863]
[1642896601002,0.00170527,2421.3,2421.2,1.20656863]
[1642896601401,0.00170527,2421.3,2421.2,2.31394534]
[1642896602334,0.00170527,2421.3,2421.2,3.63650001]
[1642896602752,0.00170527,2421.3,2421.2,2.5291233]
[1642896603333,0.00170527,2421.3,2421.2,1.20656863]
[1642896603934,0.492,2422.0,2421.3,0.00341054]
[1642896604434,0.00341054,2421.9,2421.4,2.5080513]
[1642896604634,0.00341054,2421.9,2421.4,1.52167957]
[1642896604851,0.00284211,2421.8,2421.4,1.52167957]
[1642896605234,0.00227369,2421.7,2421.4,1.52167957]
[1642896605634,0.00170527,2421.6,2421.4,1.52167957]
[1642896605889,0.00170527,2421.6,2421.5,3.18524431]
[1642896606087,0.10780503,2422.3,2421.5,3.18524431]
[1642896606284,0.10780503,2422.3,2421.5,0.01336355]
[1642896606486,0.00511581,2422.2,2421.5,0.01336355]
[1642896606886,0.10780503,2422.3,2421.5,0.01336355]
[1642896606887,0.00454738,2422.1,2421.5,0.01336355]
[1642896607283,0.00397896,2422.0,2421.9,1.16640904]
[1642896607887,0.04,2422.3,2422.0,2.70719069]
[1642896608186,0.04,2422.3,2422.2,3.569684]
[1642896608690,0.04170527,2422.3,2422.1,0.5228]
[1642896608885,0.04170527,2422.3,2422.1,0.1651]
[1642896609087,2.86623685,2422.2,2422.0,0.00719069]
[1642896609284,0.00113685,2422.2,2422.0,0.00719069]
[1642896609934,0.00113685,2422.2,2422.0,1.47551293]
[1642896610340,0.00113685,2422.2,2422.0,0.00719069]